{"text_format":"3","workbook":"xlsx","n_sheets":2,"sheets":["list","data"],"not_rendered":{"external_links":1,"defined_names":8},"read":"whole","date_system":"1900"}

{"sheet":"list","index":0,"n_rows":20,"n_cols":20,"rows_kept":20}
["№","Код участника","Название ОУ","СНИЛС","Фамилия","Имя","Отчество","Пол","Дата рождения","Участник с ОВЗ","Класс","Класс участия","Первичный балл","Добавлено по итогам апелляций","Итоговый балл","Макс. Балл","Статус","Призер регионального / республиканского этапа прошлого года","Учитель","Место работы учителя"]
[null,{"$f":"[1]Worksheet!B2","v":"353011_16363782286_18"},{"$f":"[1]Worksheet!C2","v":"МБОУ «Гимназия №11 г.Лениногорска»"},{"$f":"[1]Worksheet!D2","v":16363782286},{"$f":"[1]Worksheet!E2","v":"Загертдинова"},{"$f":"[1]Worksheet!F2","v":"Азалия"},{"$f":"[1]Worksheet!G2","v":"Ильдаровна"},{"$f":"[1]Worksheet!H2","v":"ж"},{"$f":"[1]Worksheet!I2","v":"10.01.2011"},{"$f":"[1]Worksheet!J2","v":"нет"},{"$f":"[1]Worksheet!K2","v":7},{"$f":"[1]Worksheet!L2","v":7},20,null,null,50,null,null,"Зубаровская Екатерина Геннадьевна","Муниципальное бюджетное общеобразовательное учреждение «Гимназия №11 г.Лениногорска» МО «ЛМР» Республики Татарстан"]
[null,{"$f":"[1]Worksheet!B3","v":"353011_16644156982_18"},{"$f":"[1]Worksheet!C3","v":"МБОУ «Гимназия №11 г.Лениногорска»"},{"$f":"[1]Worksheet!D3","v":16644156982},{"$f":"[1]Worksheet!E3","v":"Галимов"},{"$f":"[1]Worksheet!F3","v":"Амир"},{"$f":"[1]Worksheet!G3","v":"Рустамович"},{"$f":"[1]Worksheet!H3","v":"м"},{"$f":"[1]Worksheet!I3","v":"26.05.2011"},{"$f":"[1]Worksheet!J3","v":"нет"},{"$f":"[1]Worksheet!K3","v":7},{"$f":"[1]Worksheet!L3","v":7},13,null,null,50,null,null,"Зубаровская Екатерина Геннадьевна","Муниципальное бюджетное общеобразовательное учреждение «Гимназия №11 г.Лениногорска» МО «ЛМР» Республики Татарстан"]
[null,{"$f":"[1]Worksheet!B5","v":"353011_16353933578_18"},{"$f":"[1]Worksheet!C5","v":"МБОУ «Гимназия №11 г.Лениногорска»"},{"$f":"[1]Worksheet!D5","v":16353933578},{"$f":"[1]Worksheet!E5","v":"Газизов"},{"$f":"[1]Worksheet!F5","v":"Данияр"},{"$f":"[1]Worksheet!G5","v":"Фаридович"},{"$f":"[1]Worksheet!H5","v":"м"},{"$f":"[1]Worksheet!I5","v":"01.10.2010"},{"$f":"[1]Worksheet!J5","v":"нет"},{"$f":"[1]Worksheet!K5","v":8},{"$f":"[1]Worksheet!L5","v":8},19,null,null,50,null,"Да","Хуснутдинова Фания Фаниловна","Муниципальное бюджетное общеобразовательное учреждение «Гимназия №11 г.Лениногорска» МО «ЛМР» Республики Татарстан"]
[null,{"$f":"[1]Worksheet!B6","v":"353011_16179277699_18"},{"$f":"[1]Worksheet!C6","v":"МБОУ «Гимназия №11 г.Лениногорска»"},{"$f":"[1]Worksheet!D6","v":16179277699},{"$f":"[1]Worksheet!E6","v":"Даулетшина"},{"$f":"[1]Worksheet!F6","v":"Иркя"},{"$f":"[1]Worksheet!G6","v":"Артуровна"},{"$f":"[1]Worksheet!H6","v":"ж"},{"$f":"[1]Worksheet!I6","v":"13.07.2010"},{"$f":"[1]Worksheet!J6","v":"нет"},{"$f":"[1]Worksheet!K6","v":8},{"$f":"[1]Worksheet!L6","v":8},19,null,null,50,null,null,"Хуснутдинова Фания Фаниловна","Муниципальное бюджетное общеобразовательное учреждение «Гимназия №11 г.Лениногорска» МО «ЛМР» Республики Татарстан"]
[null,{"$f":"[1]Worksheet!B7","v":"353011_17843877126_18"},{"$f":"[1]Worksheet!C7","v":"МБОУ «Гимназия №11 г.Лениногорска»"},{"$f":"[1]Worksheet!D7","v":17843877126},{"$f":"[1]Worksheet!E7","v":"Шигабутдинова"},{"$f":"[1]Worksheet!F7","v":"Малика"},{"$f":"[1]Worksheet!G7","v":"Ильнуровна"},{"$f":"[1]Worksheet!H7","v":"ж"},{"$f":"[1]Worksheet!I7","v":"23.05.2010"},{"$f":"[1]Worksheet!J7","v":"нет"},{"$f":"[1]Worksheet!K7","v":8},{"$f":"[1]Worksheet!L7","v":8},10,null,null,50,null,null,"Хуснутдинова Фания Фаниловна","Муниципальное бюджетное общеобразовательное учреждение «Гимназия №11 г.Лениногорска» МО «ЛМР» Республики Татарстан"]
[null,{"$f":"[1]Worksheet!B8","v":"354033_16055720146_18"},{"$f":"[1]Worksheet!C8","v":"МБОУ «Нижнечершилинская ООШ»"},{"$f":"[1]Worksheet!D8","v":16055720146},{"$f":"[1]Worksheet!E8","v":"Вафина"},{"$f":"[1]Worksheet!F8","v":"Риана"},{"$f":"[1]Worksheet!G8","v":"Акдасовна"},{"$f":"[1]Worksheet!H8","v":"ж"},{"$f":"[1]Worksheet!I8","v":"30.05.2010"},{"$f":"[1]Worksheet!J8","v":"нет"},{"$f":"[1]Worksheet!K8","v":8},{"$f":"[1]Worksheet!L8","v":8},11,null,null,50,null,null,"Ахмадиева Э.ф.","МБОУ \"Нижнечершилинская ООШ\""]
[null,{"$f":"[1]Worksheet!B9","v":"354033_16364042453_18"},{"$f":"[1]Worksheet!C9","v":"МБОУ «Нижнечершилинская ООШ»"},{"$f":"[1]Worksheet!D9","v":16364042453},{"$f":"[1]Worksheet!E9","v":"Вильданова"},{"$f":"[1]Worksheet!F9","v":"Алиса"},{"$f":"[1]Worksheet!G9","v":"Рустамовна"},{"$f":"[1]Worksheet!H9","v":"ж"},{"$f":"[1]Worksheet!I9","v":"02.05.2010"},{"$f":"[1]Worksheet!J9","v":"нет"},{"$f":"[1]Worksheet!K9","v":8},{"$f":"[1]Worksheet!L9","v":8},19,null,null,50,null,null,"Ахмадиева Э.ф.","МБОУ \"Нижнечершилинская ООШ\""]
[null,{"$f":"[1]Worksheet!B10","v":"354034_16380760879_18"},{"$f":"[1]Worksheet!C10","v":"МБОУ «Куакбашская ООШ» МО «ЛМР» РТ"},{"$f":"[1]Worksheet!D10","v":16380760879},{"$f":"[1]Worksheet!E10","v":"Хамидуллин"},{"$f":"[1]Worksheet!F10","v":"Айтуган"},{"$f":"[1]Worksheet!G10","v":"Айратович"},{"$f":"[1]Worksheet!H10","v":"м"},{"$f":"[1]Worksheet!I10","v":"19.01.2011"},{"$f":"[1]Worksheet!J10","v":"нет"},{"$f":"[1]Worksheet!K10","v":8},{"$f":"[1]Worksheet!L10","v":8},30,null,null,50,"призёр",null,"Мухаметзянова Зульфия Мукатдасовна","Муниципальное бюджетное общеобразовательное учреждение \"Куакбашская ООШ\" МО \"ЛМР\" РТ"]
[null,{"$f":"[1]Worksheet!B11","v":"354043_16130156416_18"},{"$f":"[1]Worksheet!C11","v":"«Старо-Иштерякская ООШ» МО ЛМР РТ"},{"$f":"[1]Worksheet!D11","v":16130156416},{"$f":"[1]Worksheet!E11","v":"Сахаув"},{"$f":"[1]Worksheet!F11","v":"Илназ"},{"$f":"[1]Worksheet!G11","v":"Ришатович"},{"$f":"[1]Worksheet!H11","v":"м"},{"$f":"[1]Worksheet!I11","v":"18.07.2010"},{"$f":"[1]Worksheet!J11","v":"нет"},{"$f":"[1]Worksheet!K11","v":8},{"$f":"[1]Worksheet!L11","v":8},17,null,null,50,null,null,"Зинурова Алсу Мансуровна","МБОУ \"Старо-Иштерякская ООШ\""]
[null,{"$f":"[1]Worksheet!B12","v":"354043_16130156315_18"},{"$f":"[1]Worksheet!C12","v":"«Старо-Иштерякская ООШ» МО ЛМР РТ"},{"$f":"[1]Worksheet!D12","v":16130156315},{"$f":"[1]Worksheet!E12","v":"Сахаув"},{"$f":"[1]Worksheet!F12","v":"Инсаф"},{"$f":"[1]Worksheet!G12","v":"Ришатович"},{"$f":"[1]Worksheet!H12","v":"м"},{"$f":"[1]Worksheet!I12","v":"18.07.2010"},{"$f":"[1]Worksheet!J12","v":"нет"},{"$f":"[1]Worksheet!K12","v":8},{"$f":"[1]Worksheet!L12","v":8},21,null,null,50,null,null,"Зинурова Алсу Мансуровна","МБОУ \"Старо-Иштерякская ООШ\""]
[null,{"$f":"[1]Worksheet!B13","v":"354043_15978598156_18"},{"$f":"[1]Worksheet!C13","v":"«Старо-Иштерякская ООШ» МО ЛМР РТ"},{"$f":"[1]Worksheet!D13","v":15978598156},{"$f":"[1]Worksheet!E13","v":"Муртазина"},{"$f":"[1]Worksheet!F13","v":"Рузиля"},{"$f":"[1]Worksheet!G13","v":"Реналевна"},{"$f":"[1]Worksheet!H13","v":"ж"},{"$f":"[1]Worksheet!I13","v":"30.04.2010"},{"$f":"[1]Worksheet!J13","v":"нет"},{"$f":"[1]Worksheet!K13","v":8},{"$f":"[1]Worksheet!L13","v":8},20,null,null,50,null,null,"Зинурова Алсу Мансуровна","МБОУ \"Старо-Иштерякская ООШ\""]
[null,{"$f":"[1]Worksheet!B14","v":"354043_16115527842_18"},{"$f":"[1]Worksheet!C14","v":"«Старо-Иштерякская ООШ» МО ЛМР РТ"},{"$f":"[1]Worksheet!D14","v":16115527842},{"$f":"[1]Worksheet!E14","v":"Салимзянова"},{"$f":"[1]Worksheet!F14","v":"Эльза"},{"$f":"[1]Worksheet!G14","v":"Айратовна"},{"$f":"[1]Worksheet!H14","v":"ж"},{"$f":"[1]Worksheet!I14","v":"02.07.2010"},{"$f":"[1]Worksheet!J14","v":"нет"},{"$f":"[1]Worksheet!K14","v":8},{"$f":"[1]Worksheet!L14","v":8},26,null,null,50,"призёр",null,"Зинурова Алсу Мансуровна","МБОУ \"Старо-Иштерякская ООШ\""]
[null,{"$f":"[1]Worksheet!B15","v":"353011_15619775100_18"},{"$f":"[1]Worksheet!C15","v":"МБОУ «Гимназия №11 г.Лениногорска»"},{"$f":"[1]Worksheet!D15","v":15619775100},{"$f":"[1]Worksheet!E15","v":"Валиуллина"},{"$f":"[1]Worksheet!F15","v":"Айгуль"},{"$f":"[1]Worksheet!G15","v":"Эльдаровна"},{"$f":"[1]Worksheet!H15","v":"ж"},{"$f":"[1]Worksheet!I15","v":"01.10.2009"},{"$f":"[1]Worksheet!J15","v":"нет"},{"$f":"[1]Worksheet!K15","v":9},{"$f":"[1]Worksheet!L15","v":9},15,null,null,20,null,null,"Зубаирова Альфия Ураловна","Муниципальное бюджетное общеобразовательное учреждение\"Гимназия №11 г.Лениногорска\" муниципального образования \"Лениногорский муниципальный район\" Республики Татарстан"]
[null,{"$f":"[1]Worksheet!B16","v":"353011_16157826987_18"},{"$f":"[1]Worksheet!C16","v":"МБОУ «Гимназия №11 г.Лениногорска»"},{"$f":"[1]Worksheet!D16","v":16157826987},{"$f":"[1]Worksheet!E16","v":"Мингалимов"},{"$f":"[1]Worksheet!F16","v":"Динар"},{"$f":"[1]Worksheet!G16","v":"Ильшатович"},{"$f":"[1]Worksheet!H16","v":"м"},{"$f":"[1]Worksheet!I16","v":"15.05.2009"},{"$f":"[1]Worksheet!J16","v":"нет"},{"$f":"[1]Worksheet!K16","v":9},{"$f":"[1]Worksheet!L16","v":9},37,null,null,20,"призёр",null,"Зубаирова Альфия Ураловна","Муниципальное бюджетное общеобразовательное учреждение\"Гимназия №11 г.Лениногорска\" муниципального образования \"Лениногорский муниципальный район\" Республики Татарстан"]
[null,{"$f":"[1]Worksheet!B17","v":"353011_15813716775_18"},{"$f":"[1]Worksheet!C17","v":"МБОУ «Гимназия №11 г.Лениногорска»"},{"$f":"[1]Worksheet!D17","v":15813716775},{"$f":"[1]Worksheet!E17","v":"Насибуллин"},{"$f":"[1]Worksheet!F17","v":"Тимур"},{"$f":"[1]Worksheet!G17","v":"Рамилевич"},{"$f":"[1]Worksheet!H17","v":"м"},{"$f":"[1]Worksheet!I17","v":"31.08.2009"},{"$f":"[1]Worksheet!J17","v":"нет"},{"$f":"[1]Worksheet!K17","v":9},{"$f":"[1]Worksheet!L17","v":9},31,null,null,20,"призёр",null,"Зубаирова Альфия Ураловна","Муниципальное бюджетное общеобразовательное учреждение\"Гимназия №11 г.Лениногорска\" муниципального образования \"Лениногорский муниципальный район\" Республики Татарстан"]
[null,{"$f":"[1]Worksheet!B18","v":"354031_15740172656_18"},{"$f":"[1]Worksheet!C18","v":"МБОУ «Урдалинская ООШ» МО ЛМР РТ"},{"$f":"[1]Worksheet!D18","v":15740172656},{"$f":"[1]Worksheet!E18","v":"Ахметова"},{"$f":"[1]Worksheet!F18","v":"Милена"},{"$f":"[1]Worksheet!G18","v":"Фуатовна"},{"$f":"[1]Worksheet!H18","v":"ж"},{"$f":"[1]Worksheet!I18","v":"21.01.2010"},{"$f":"[1]Worksheet!J18","v":"нет"},{"$f":"[1]Worksheet!K18","v":9},{"$f":"[1]Worksheet!L18","v":9},29,null,null,50,"призёр",null,"Миндиярова Халида Мансуровна","МБОУ \"Урдалинская ООШ\" МО ЛМР РТ"]
[null,{"$f":"[1]Worksheet!B19","v":"354034_15442144337_18"},{"$f":"[1]Worksheet!C19","v":"МБОУ «Куакбашская ООШ» МО «ЛМР» РТ"},{"$f":"[1]Worksheet!D19","v":15442144337},{"$f":"[1]Worksheet!E19","v":"Сахапова"},{"$f":"[1]Worksheet!F19","v":"Аделя"},{"$f":"[1]Worksheet!G19","v":"Асхатовна"},{"$f":"[1]Worksheet!H19","v":"ж"},{"$f":"[1]Worksheet!I19","v":"20.04.2009"},{"$f":"[1]Worksheet!J19","v":"нет"},{"$f":"[1]Worksheet!K19","v":9},{"$f":"[1]Worksheet!L19","v":9},10,null,null,50,null,null,"Мухаметзянова Зульфия Мукатдасовна","Муниципальное бюджетное общеобразовательное учреждение \"Куакбашская ООШ\" МО \"ЛМР\" РТ"]
[null,{"$f":"[1]Worksheet!B20","v":"352021_15697806628_18"},{"$f":"[1]Worksheet!C20","v":"МБОУ «Шугуровская СОШ им.В.П.Чкалова» МО \"Лениногорский муниципальный район\" РТ"},{"$f":"[1]Worksheet!D20","v":15697806628},{"$f":"[1]Worksheet!E20","v":"Шарапов"},{"$f":"[1]Worksheet!F20","v":"Тимур"},{"$f":"[1]Worksheet!G20","v":"Эдуардович"},"ж",{"$f":"[1]Worksheet!I20","v":"12.12.2006"},{"$f":"[1]Worksheet!J20","v":"нет"},{"$f":"[1]Worksheet!K20","v":11},{"$f":"[1]Worksheet!L20","v":11},48,null,null,50,"победитель",null,"Хасмухаметова Альфия Сагитовна","МБОУ \"Шугуровская СОШ им.В.П.Чкалова\" МО \"Лениногорский муниципальный район\" РТ"]
[null,{"$f":"[1]Worksheet!B21","v":"353011_14885478021_18"},{"$f":"[1]Worksheet!C21","v":"МБОУ «Гимназия №11 г.Лениногорска»"},{"$f":"[1]Worksheet!D21","v":14885478021},{"$f":"[1]Worksheet!E21","v":"Камалтдинова"},{"$f":"[1]Worksheet!F21","v":"Алия"},{"$f":"[1]Worksheet!G21","v":"Инсафовна"},{"$f":"[1]Worksheet!H21","v":"ж"},{"$f":"[1]Worksheet!I21","v":"08.12.2007"},{"$f":"[1]Worksheet!J21","v":"нет"},{"$f":"[1]Worksheet!K21","v":11},{"$f":"[1]Worksheet!L21","v":11},31,null,null,50,"призёр",null,"Хуснутдинова Фания Фаниловна","Муниципальное бюджетное общеобразовательное учреждение «Гимназия №11 г.Лениногорска» МО «ЛМР» Республики Татарстан"]

{"sheet":"data","index":1,"n_rows":25,"n_cols":10,"rows_kept":25}
[{"$nulls":6},"1 - Техника, технология и техническое творчество","2 - Культура дома, дизайн и технологии","3 - Робототехника","4 - Информационная безопасность"]
["1 - Техника, технологии и техническое творчество","1.1  Практика по ручной деревообработке",{"$nulls":4},"1.1 Практика по ручной деревообработке","2.1 Ручная обработка швейного изделия или узла","3.1 Робототехника","4.1 Не предусмотрена"]
["2 - Культура дома, дизайн и технологии","1.2 Практика по механической деревообработке",{"$nulls":4},"1.2 Практика по механической деревообработке","2.2 Механическая обработка швейного изделия или узла + Моделирование"]
["3 - Робототехника","1.3 Практика по ручной металлообработке",{"$nulls":4},"1.3 Практика по ручной металлообработке","2.3 Обработка швейного изделия или узла на швейно-вышивальном оборудовании + Моделирование"]
["4 - Информационная безопасность","1.4 Практика по механической металлообработке",{"$nulls":4},"1.4 Практика по механической металлообработке","2.4 3D-моделирование и печать"]
[null,"1.5 Электрорадиотехника",{"$nulls":4},"1.5 Электрорадиотехника","2.5 Практика по работе на лазерно-гравировальном станке"]
[null,"1.6 3D-моделирование и печать",{"$nulls":4},"1.6 3D-моделирование и печать","2.6 Промышленный дизайн"]
[null,"1.7 Практика по работе на лазерно-гравировальном станке",{"$nulls":4},"1.7 Практика по работе на лазерно-гравировальном станке"]
[null,"1.8 Промышленный дизайн",{"$nulls":4},"1.8 Промышленный дизайн"]
[null,"2.1 Ручная обработка швейного изделия или узла"]
[null,"2.2 Механическая обработка швейного изделия или узла + Моделирование"]
[null,"2.3 Обработка швейного изделия или узла на швейно-вышивальном оборудовании + Моделирование"]
[null,"2.4 3D-моделирование и печать"]
[null,"2.5 Практика по работе на лазерно-гравировальном станке"]
[null,"2.6 Промышленный дизайн"]
[null,"3.1 Робототехника"]
[null,"4.1 Не предусмотрена"]
[]
[]
[]
[]
[]
["участник"]
["призер",null,"да","да",null,"м"]
["победитель",null,null,"нет",null,"ж"]